fUST/lending_fUST_20250114
["ID","MTS","AMOUNT","RATE_DAILY","PERIOD"]
[348791445,1736785839518,-558.54,0.00020546,3]
[348791446,1736785839527,-162.721,0.00020786,2]
[348791447,1736785839537,-500.0,0.00020786,3]
[348791448,1736785839546,-500.0,0.00020786,3]
[348791449,1736785839555,-500.0,0.0002082,3]
[348791450,1736785839564,-1569.99,0.0002082,3]
[348791451,1736785839574,-10000.0,0.00021,5]
[348791452,1736785839583,-8696.6834393,0.00021,2]
[348791453,1736785839592,-172.845813,0.00021046,2]
[348791454,1736785839602,-500.0,0.00021058,3]
[348791455,1736785839611,-5487.78,0.00021058,3]
[348791456,1736785839620,-500.0,0.0002106,3]
[348791457,1736785839630,-333.68,0.0002106,3]
[348791458,1736785839639,-500.0,0.00021094,3]
[348791459,1736785839649,-1569.99,0.00021094,3]
[348791460,1736785839659,-500.0,0.00021334,3]
[348791461,1736785839668,-500.0,0.00021368,3]
[348791462,1736785839678,-1569.99,0.00021368,3]
[348791463,1736785839688,-57038.55840651,0.000215,2]
[348791464,1736785839697,-172.845813,0.00021558,2]
[348791465,1736785839708,-514.91167659,0.00021581,2]
[348791466,1736785839717,-501.70911784,0.00021581,2]
[348791467,1736785839727,-500.0,0.00021581,2]
[348791468,1736785839736,-207.42477031,0.00021581,2]
[348791470,1736785839746,-500.0,0.00021581,2]
[348791471,1736785839757,-500.67913765,0.00021581,2]
[348791472,1736785839768,-500.0,0.00021607,3]
[348791473,1736785839778,-5487.78,0.00021607,3]
[348791474,1736785839789,-500.0,0.00021608,3]
[348791475,1736785839802,-500.0,0.00021642,3]
[348791476,1736785839812,-9637.57,0.00021642,2]
[348791477,1736785839823,-500.0,0.00021642,3]
[348791478,1736785839834,-757.39,0.00021642,3]
[348791479,1736785839845,-1569.99,0.00021642,3]
[348791480,1736785839854,-500.0,0.00021642,3]
[348791481,1736785839864,-500.0,0.00021642,3]
[348791482,1736785839873,-500.0,0.00021642,3]
[348791483,1736785839884,-500.0,0.00021642,3]
[348791484,1736785839894,-500.0,0.00021642,3]
[348791485,1736785839905,-500.0,0.00021642,3]
[348791486,1736785839915,-500.0,0.00021642,3]
[348791487,1736785839925,-500.0,0.00021642,3]
[348791488,1736785839935,-500.0,0.00021642,3]
[348791489,1736785839946,-500.0,0.00021642,3]
[348791490,1736785839955,-500.0,0.00021642,3]
[348791491,1736785839964,-500.0,0.00021642,3]
[348791492,1736785839974,-500.0,0.00021642,3]
[348791493,1736785839984,-500.0,0.00021642,3]
[348791495,1736785839993,-500.0,0.00021642,3]
[348791496,1736785840004,-353.3287683,0.00021699,2]
[348791497,1736785840014,-287.0,0.00021777,2]
[348791498,1736785840023,-500.0,0.00021882,3]
[348791499,1736785840032,-217.47035517,0.000219,2]
[348791500,1736785840043,-3644.18539652,0.000219,2]
[348791501,1736785840056,-204.7013078,0.00021915,2]
[348791503,1736785840066,-500.0,0.00021915,2]
[348791504,1736785840076,-180.38714081,0.00021915,2]
[348791506,1736785840086,-500.0,0.00021915,2]
[348791509,1736785840097,-264.647581,0.00021915,2]
[348791510,1736785840106,-500.0,0.00021916,3]
[348791512,1736785840116,-9637.57,0.00021916,2]
[348791513,1736785840125,-500.0,0.00021916,3]
[348791514,1736785840135,-757.39,0.00021916,3]
[348791515,1736785840144,-1569.99,0.00021916,3]
[348791516,1736785840154,-500.0,0.00021916,3]
[348791517,1736785840163,-162.67,0.00021916,3]
[348791518,1736785840172,-500.0,0.00021916,3]
[348791519,1736785840181,-500.0,0.00021916,3]
[348791520,1736785840191,-500.0,0.00021916,3]
[348791521,1736785840200,-500.0,0.00021916,3]
[348791522,1736785840210,-500.0,0.00021916,3]
[348791523,1736785840219,-500.0,0.00021916,3]
[348791524,1736785840229,-166.52,0.0002192,2]
[348791526,1736785840238,-166.52,0.0002192,2]
[348791528,1736785840247,-166.52,0.0002192,2]
[348791529,1736785840259,-166.52,0.0002192,2]
[348791530,1736785840268,-166.52,0.0002192,2]
[348791531,1736785840277,-166.52,0.0002192,2]
[348791532,1736785840286,-166.52,0.0002192,2]
[348791533,1736785840295,-160.0,0.00022,2]
[348791534,1736785840305,-159.0,0.00022,2]
[348791535,1736785840315,-100035.68608952,0.00022,2]
[348791536,1736785840324,-14020.66202246,0.00022,2]
[348791537,1736785840333,-799.89905456,0.00022,5]
[348791538,1736785840343,-172.845813,0.0002207,2]
[348791540,1736785840352,-500.0,0.00022155,3]
[348791541,1736785840362,-500.0,0.00022155,3]
[348791542,1736785840371,-233.63969103,0.00022155,3]
[348791543,1736785840380,-500.0,0.00022155,3]
[348791544,1736785840390,-500.0,0.00022155,3]
[348791545,1736785840400,-500.0,0.00022155,3]
[348791546,1736785840409,-365.82308792,0.00022155,3]
[348791547,1736785840419,-500.0,0.00022155,3]
[348791548,1736785840429,-500.0,0.00022155,3]
[348791549,1736785840438,-500.0,0.00022155,3]
[348791550,1736785840447,-503.92746842,0.00022155,3]
[348791552,1736785840456,-500.0,0.00022155,3]
[348791553,1736785840465,-500.0,0.00022155,3]
[348791554,1736785840475,-500.0,0.00022155,3]
[348791555,1736785840485,-500.0,0.00022155,3]
[348791556,1736785840494,-544.28093704,0.00022155,3]
[348791557,1736785840505,-500.0,0.00022155,3]
[348791558,1736785840515,-503.5654262,0.00022155,3]
[348791559,1736785840525,-501.82513079,0.00022155,3]
[348791560,1736785840534,-500.0,0.00022155,3]
[348791561,1736785840543,-500.0,0.00022155,3]
[348791562,1736785840553,-500.0,0.00022155,3]
[348791563,1736785840563,-619.29096904,0.00022155,3]
[348791564,1736785840572,-500.0,0.00022155,3]
[348791565,1736785840581,-500.0,0.00022155,3]
[348791566,1736785840591,-500.0,0.00022155,3]
[348791567,1736785840600,-500.0,0.00022155,3]
[348791568,1736785840610,-375.60134873,0.00022155,3]
[348791569,1736785840620,-501.09861505,0.00022155,3]
[348791570,1736785840629,-500.0,0.00022155,3]
[348791571,1736785840640,-500.0,0.00022155,3]
[348791572,1736785840650,-502.58338597,0.00022155,3]
[348791573,1736785840660,-500.0,0.00022155,3]
[348791574,1736785840670,-500.98291738,0.00022155,3]
[348791575,1736785840679,-500.0,0.00022155,3]
[348791576,1736785840690,-1001.28936477,0.00022155,3]
[348791577,1736785840699,-501.94020231,0.00022155,3]
[348791578,1736785840709,-500.0,0.00022155,3]
[348791579,1736785840718,-500.0,0.00022155,3]
[348791580,1736785840728,-500.0,0.00022155,3]
[348791581,1736785840738,-503.68500097,0.00022155,3]
[348791582,1736785840751,-500.0,0.00022155,3]
[348791583,1736785840760,-501.35051478,0.00022155,3]
[348791584,1736785840769,-500.0,0.00022155,3]
[348791585,1736785840778,-500.0,0.00022155,3]
[348791586,1736785840789,-501.08116652,0.00022155,3]
[348791587,1736785840799,-500.0,0.00022155,3]
[348791588,1736785840808,-500.0,0.00022155,3]
[348791589,1736785840818,-500.0,0.00022155,3]
[348791590,1736785840828,-500.0,0.00022155,3]
[348791591,1736785840837,-500.0,0.00022155,3]
[348791592,1736785840847,-500.0,0.00022155,3]
[348791593,1736785840856,-512.86386433,0.00022155,3]
[348791594,1736785840865,-524.63451889,0.00022155,3]
[348791595,1736785840874,-500.0,0.00022155,3]
[348791596,1736785840884,-500.0,0.00022155,3]
[348791597,1736785840894,-500.0,0.00022155,3]
[348791598,1736785840904,-500.0,0.00022155,3]
[348791599,1736785840913,-501.53891891,0.00022155,3]
[348791600,1736785840922,-502.01908741,0.00022155,3]
[348791601,1736785840931,-500.0,0.00022155,3]
[348791602,1736785840940,-501.89066672,0.00022155,3]
[348791603,1736785840951,-529.16644415,0.00022155,3]
[348791604,1736785840961,-500.0,0.00022155,3]
[348791605,1736785840970,-503.16547191,0.00022155,3]
[348791606,1736785840979,-500.0,0.00022155,3]
[348791607,1736785840990,-500.0,0.00022155,3]
[348791608,1736785841001,-500.0,0.00022155,3]
[348791609,1736785841011,-500.0,0.00022155,3]
[348791610,1736785841020,-500.0,0.00022155,3]
[348791611,1736785841030,-300.0,0.00022155,3]
[348791612,1736785841040,-500.0,0.00022155,3]
[348791613,1736785841050,-500.0,0.00022155,3]
[348791614,1736785841061,-500.0,0.00022155,3]
[348791615,1736785841072,-500.0,0.00022155,3]
[348791616,1736785841082,-503.21852325,0.00022155,3]
[348791617,1736785841093,-500.0,0.00022155,3]
[348791618,1736785841103,-500.0,0.00022155,3]
[348791619,1736785841113,-500.0,0.00022155,3]
[348791620,1736785841123,-501.36853192,0.00022155,3]
[348791621,1736785841133,-500.0,0.00022155,3]
[348791622,1736785841144,-422.89303735,0.00022155,3]
[348791623,1736785841153,-502.20013864,0.00022155,3]
[348791624,1736785841163,-500.0,0.00022155,3]
[348791625,1736785841173,-500.0,0.00022155,3]
[348791626,1736785841183,-500.84530392,0.00022155,3]
[348791627,1736785841193,-500.92034922,0.00022155,3]
[348791628,1736785841203,-501.47682434,0.00022155,3]
[348791629,1736785841212,-500.99747849,0.00022155,3]
[348791630,1736785841221,-500.0,0.00022155,3]
[348791631,1736785841231,-502.6595487,0.00022155,3]
[348791632,1736785841240,-500.0,0.00022155,3]
[348791633,1736785841252,-500.0,0.00022155,3]
[348791634,1736785841261,-500.0,0.00022155,3]
[348791635,1736785841271,-502.98114868,0.00022155,3]
[348791636,1736785841280,-500.0,0.00022155,3]
[348791637,1736785841289,-503.5255657,0.00022155,3]
[348791638,1736785841299,-500.0,0.00022155,3]
[348791639,1736785841308,-500.0,0.00022155,3]
[348791640,1736785841318,-502.79850832,0.00022155,3]
[348791641,1736785841327,-500.0,0.00022155,3]
[348791642,1736785841336,-500.0,0.00022155,3]
[348791643,1736785841346,-501.75960451,0.00022155,3]
[348791644,1736785841356,-501.01543591,0.00022155,3]
[348791645,1736785841365,-500.0,0.00022155,3]
[348791646,1736785841375,-500.0,0.00022155,3]
[348791647,1736785841384,-500.0,0.00022155,3]
[348791648,1736785841393,-500.0,0.00022155,3]
[348791649,1736785841403,-1000.0,0.00022155,3]
[348791650,1736785841412,-500.0,0.00022155,3]
[348791651,1736785841421,-500.0,0.00022155,3]
[348791652,1736785841431,-500.0,0.00022155,3]
[348791653,1736785841441,-501.47156328,0.00022155,3]
[348791654,1736785841450,-495.0,0.00022155,3]
[348791655,1736785841459,-501.07430556,0.00022155,3]
[348791656,1736785841469,-502.11885983,0.00022155,3]
[348791657,1736785841479,-500.0,0.00022155,3]
[348791658,1736785841489,-500.0,0.00022155,3]
[348791659,1736785841498,-501.70287634,0.00022155,3]
[348791660,1736785841597,-500.0,0.00022155,3]
[348791661,1736785841607,-565.63466005,0.00022155,3]
[348791662,1736785841617,-272.05791612,0.00022155,3]
[348791663,1736785841627,-500.0,0.00022155,3]
[348791664,1736785841636,-500.0,0.00022155,3]
[348791665,1736785841646,-500.0,0.00022156,3]
[348791666,1736785841655,-500.0,0.0002219,3]
[348791667,1736785841665,-9637.57,0.0002219,2]
[348791668,1736785841674,-500.0,0.0002219,3]
[348791669,1736785841683,-757.39,0.0002219,3]
[348791670,1736785841693,-1569.99,0.0002219,3]
[348791671,1736785841702,-557.45,0.0002219,3]
[348791672,1736785841712,-500.0,0.0002219,3]
[348791673,1736785841721,-157.22891437,0.0002219,3]
[348791674,1736785841730,-531.18,0.0002219,3]
[348791675,1736785841739,-488.06,0.0002219,3]
[348791676,1736785841749,-258.0,0.0002219,3]
[348791677,1736785841759,-466.1854412,0.00022213,2]
[348791678,1736785841768,-151.0,0.000223,7]
[348791679,1736785841778,-3644.18539652,0.00022306,2]
[348791680,1736785841787,-508.92718243,0.00022429,3]
[348791681,1736785841797,-5487.78,0.00022429,3]
[348791682,1736785841809,-643.24,0.00022429,3]
[348791683,1736785841821,-500.0,0.00022429,3]
[348791684,1736785841833,-500.0,0.00022429,3]
[348791685,1736785841844,-502.19366561,0.00022429,3]
[348791686,1736785841853,-500.0,0.00022429,3]
[348791687,1736785841862,-371.87172579,0.00022429,3]
[348791688,1736785841872,-500.0,0.00022429,3]
[348791689,1736785841883,-570.61,0.00022429,3]
[348791690,1736785841892,-500.0,0.00022429,3]
[348791691,1736785841902,-500.0,0.0002243,3]
[348791692,1736785841911,-555.579,0.0002245,2]
[348791693,1736785841921,-500.0,0.00022464,3]
[348791694,1736785841931,-9637.57,0.00022464,2]
[348791695,1736785841942,-160.02,0.00022464,3]
[348791696,1736785841953,-757.39,0.00022464,3]
[348791697,1736785841964,-1569.99,0.00022464,3]
[348791698,1736785841975,-500.0,0.00022464,3]
[348791699,1736785841985,-73872.93066835,0.000225,2]
[348791700,1736785841994,-151.0,0.000225,10]
[348791701,1736785842004,-151.0,0.000227,9]
[348791702,1736785842014,-643.24,0.00022703,3]
[348791703,1736785842023,-500.0,0.00022703,3]
[348791704,1736785842032,-500.0,0.00022704,3]
[348791705,1736785842043,-3644.18539652,0.00022712,2]
[348791706,1736785842055,-5487.78,0.00022731,3]
[348791707,1736785842065,-500.0,0.00022738,3]
[348791708,1736785842074,-9637.57,0.00022738,2]
[348791709,1736785842084,-757.39,0.00022738,3]
[348791710,1736785842094,-1569.99,0.00022738,3]
[348791711,1736785842103,-637.91,0.00022738,3]
[348791712,1736785842112,-13094.00645888,0.00022869,2]
[348791713,1736785842122,-56317.77222663,0.0002287,2]
[348791714,1736785842131,-17085.62748791,0.0002289,5]
[348791715,1736785842142,-151.0,0.000229,8]
[348791716,1736785842152,-500.0,0.00022977,3]
[348791717,1736785842163,-643.24,0.00022977,3]
[348791718,1736785842174,-500.0,0.00022977,3]
[348791719,1736785842183,-500.0,0.00022978,3]
[348791720,1736785842193,-5487.78,0.00022999,3]
[348791721,1736785842204,-4688.71158077,0.00023,2]
[348791722,1736785842213,-7591.26065333,0.00023,2]
[348791723,1736785842222,-10000.366,0.00023,3]
[348791724,1736785842231,-11878.78580877,0.00023,2]
[348791725,1736785842241,-500.0,0.00023012,3]
[348791726,1736785842252,-9637.57,0.00023012,2]
[348791727,1736785842263,-757.39,0.00023012,3]
[348791728,1736785842272,-1569.99,0.00023012,3]
[348791729,1736785842284,-188.0,0.00023091,2]
[348791730,1736785842293,-188.0,0.00023091,2]
[348791731,1736785842304,-188.0,0.00023091,2]
[348791732,1736785842313,-190.87,0.00023091,2]
[348791733,1736785842324,-167.0,0.00023091,2]
[348791734,1736785842335,-167.44,0.00023091,2]
[348791735,1736785842346,-3644.18539652,0.00023117,2]
[348791736,1736785842356,-13094.00645888,0.00023132,2]
[348791737,1736785842366,-151.0,0.000232,9]
[348791738,1736785842375,-5487.78,0.0002322,3]
[348791739,1736785842385,-643.24,0.00023251,3]
[348791740,1736785842394,-500.0,0.00023251,3]
[348791741,1736785842404,-500.0,0.00023252,3]
[348791742,1736785842414,-500.0,0.00023286,3]
[348791743,1736785842425,-9637.57,0.00023286,2]
[348791744,1736785842434,-757.39,0.00023286,3]
[348791745,1736785842444,-1569.99,0.00023286,3]
[348791746,1736785842453,-46191.05666827,0.000233,5]
[348791747,1736785842462,-13094.00645888,0.00023381,2]
[348791748,1736785842471,-861.7266262,0.00023392,2]
[348791749,1736785842481,-151.0,0.000234,5]
[348791750,1736785842491,-5487.78,0.00023407,3]
[348791751,1736785842502,-162.0,0.00023416,2]
[348791752,1736785842511,-162.0,0.00023416,2]
[348791753,1736785842521,-164.33,0.00023416,2]
[348791754,1736785842530,-167.56,0.00023416,2]
[348791755,1736785842539,-151.0,0.00023461,7]
[348791756,1736785842549,-22542.25016363,0.00023474,2]
[348791757,1736785842558,-9872.6067132,0.000235,7]
[348791758,1736785842568,-9738.38231836,0.000235,2]
[348791759,1736785842578,-10000.0,0.000235,4]
[348791760,1736785842588,-5487.78,0.00023516,3]
[348791761,1736785842597,-3644.18539652,0.00023523,2]
[348791762,1736785842606,-18221.23070891,0.00023523,3]
[348791763,1736785842615,-851.34193587,0.00023525,2]
[348791764,1736785842625,-3000.0,0.00023525,2]
[348791765,1736785842635,-500.0,0.00023525,3]
[348791766,1736785842644,-643.24,0.00023525,3]
[348791767,1736785842653,-500.0,0.00023525,3]
[348791768,1736785842663,-3757.58434593,0.00023525,2]
[348791769,1736785842672,-500.0,0.00023526,3]
[348791770,1736785842681,-500.0,0.0002356,3]
[348791771,1736785842690,-9637.57,0.0002356,2]
[348791772,1736785842700,-757.39,0.0002356,3]
[348791773,1736785842709,-1569.99,0.0002356,3]
[348791774,1736785842718,-5487.78,0.00023599,3]
[348791776,1736785842727,-151.0,0.000236,8]
[348791777,1736785842737,-151.0,0.000236,5]
[348791778,1736785842746,-151.0,0.000236,10]
[348791779,1736785842756,-151.0,0.000236,10]
[348791780,1736785842766,-150.0,0.000236,2]
[348791781,1736785842775,-747.78,0.000236,2]
[348791782,1736785842784,-150.0,0.000236,2]
[348791783,1736785842793,-150.0,0.000236,2]
[348791784,1736785842802,-179556.22467075,0.000236,7]
[348791785,1736785842813,-5487.78,0.00023609,3]
[348791786,1736785842822,-5487.78,0.00023609,3]
[348791787,1736785842831,-5487.78,0.00023609,3]
[348791788,1736785842840,-5487.78,0.00023615,3]
[348791790,1736785842850,-353.1995497,0.00023616,2]
[348791792,1736785842859,-353.3287683,0.00023616,2]
[348791794,1736785842869,-306.0,0.00023616,2]
[348791796,1736785842878,-353.3287683,0.00023616,2]
[348791797,1736785842888,-341.9087673,0.00023616,2]
[348791799,1736785842897,-153.0,0.00023616,2]
[348791802,1736785842906,-153.9204537,0.00023616,2]
[348791804,1736785842916,-153.0,0.00023616,2]
[348791806,1736785842925,-153.9204537,0.00023616,2]
[348791808,1736785842934,-214.9026291,0.00023616,2]
[348791810,1736785842944,-153.9204537,0.00023616,2]
[348791812,1736785842954,-153.0,0.00023616,2]
[348791815,1736785842964,-153.9204537,0.00023616,2]
[348791818,1736785842974,-214.9026291,0.00023616,2]
[348791822,1736785842982,-153.9204537,0.00023616,2]
[348791825,1736785842992,-153.9204537,0.00023616,2]
[348791829,1736785843003,-153.9204537,0.00023616,2]
[348791833,1736785843013,-214.9026291,0.00023616,2]
[348791836,1736785843022,-153.9204537,0.00023616,2]
[348791839,1736785843032,-214.9026291,0.00023616,2]
[348791842,1736785843041,-214.9026291,0.00023616,2]
[348791845,1736785843054,-213.4758891,0.00023616,2]
[348791848,1736785843063,-153.0,0.00023616,2]
[348791850,1736785843073,-153.0,0.00023616,2]
[348791853,1736785843082,-153.0,0.00023616,2]
[348791856,1736785843091,-153.0,0.00023616,2]
[348791859,1736785843101,-500.0,0.00023621,3]
[348791862,1736785843111,-508.57592207,0.00023621,3]
[348791864,1736785843120,-1000.0,0.00023622,7]
[348791866,1736785843131,-1000.0,0.00023622,7]
[348791867,1736785843141,-1000.0,0.00023622,7]
[348791870,1736785843150,-1000.0,0.00023622,7]
[348791874,1736785843160,-1000.0,0.00023622,7]
[348791877,1736785843170,-1000.0,0.00023622,7]
[348791880,1736785843180,-1000.0,0.00023622,7]
[348791882,1736785843189,-1000.0,0.00023622,7]
[348791884,1736785843201,-1000.0,0.00023622,7]
[348791886,1736785843211,-1000.0,0.00023622,7]
[348791888,1736785843222,-1000.0,0.00023622,7]
[348791890,1736785843231,-1000.0,0.00023622,7]
[348791893,1736785843242,-1000.0,0.00023622,7]
[348791895,1736785843253,-1000.0,0.00023622,7]
[348791897,1736785843263,-1000.0,0.00023622,7]
[348791899,1736785843272,-1000.0,0.00023622,7]
[348791901,1736785843282,-1000.0,0.00023622,7]
[348791903,1736785843293,-1000.0,0.00023622,7]
[348791905,1736785843303,-1000.0,0.00023622,7]
[348791908,1736785843313,-1000.0,0.00023622,7]
[348791910,1736785843322,-1000.0,0.00023622,7]
[348791912,1736785843332,-1000.0,0.00023622,7]
[348791914,1736785843342,-1000.0,0.00023622,7]
[348791916,1736785843351,-1000.0,0.00023622,7]
[348791918,1736785843360,-1000.0,0.00023622,7]
[348791920,1736785843370,-1000.0,0.00023622,7]
[348791922,1736785843378,-1000.0,0.00023622,7]
[348791923,1736785843387,-1000.0,0.00023622,7]
[348791926,1736785843397,-1000.0,0.00023622,7]
[348791928,1736785843407,-1000.0,0.00023622,7]
[348791930,1736785843416,-1000.0,0.00023622,7]
[348791932,1736785843426,-151.0,0.00023622,7]
[348791934,1736785843435,-151.0,0.00023622,7]
[348791936,1736785843445,-254.91974,0.00023622,7]
[348791938,1736785843454,-234.804453,0.00023622,7]
[348791940,1736785843464,-234.804453,0.00023622,7]
[348791942,1736785843476,-234.804453,0.00023622,7]
[348791944,1736785843485,-234.804453,0.00023622,7]
[348791946,1736785843495,-234.804453,0.00023622,7]
[348791948,1736785843506,-234.804453,0.00023622,7]
[348791950,1736785843515,-234.804453,0.00023622,7]
[348791952,1736785843524,-234.804453,0.00023622,7]
[348791954,1736785843534,-234.804453,0.00023622,7]
[348791956,1736785843543,-234.804453,0.00023622,7]
[348791958,1736785843553,-234.804453,0.00023622,7]
[348791960,1736785843562,-234.804453,0.00023622,7]
[348791962,1736785843572,-234.804453,0.00023622,7]
[348791972,1736785843662,-234.804453,0.00023622,7]
[348791973,1736785843673,-234.804453,0.00023622,7]
[348791974,1736785843684,-234.804453,0.00023622,7]
[348791976,1736785843693,-234.804453,0.00023622,7]
[348791978,1736785843703,-234.804453,0.00023622,7]
[348791980,1736785843712,-234.804453,0.00023622,7]
[348791982,1736785843722,-234.804457,0.00023622,7]
[348791984,1736785843732,-151.0,0.00023622,7]
[348791986,1736785843742,-151.0,0.00023622,7]
[348791988,1736785843751,-280.321612,0.00023622,7]
[348791990,1736785843764,-151.0,0.00023622,2]
[348791992,1736785843774,-151.0,0.00023622,2]
[348791994,1736785843783,-151.0,0.00023622,2]
[348791996,1736785843792,-151.0,0.00023622,2]
[348791998,1736785843802,-151.0,0.00023622,2]
[348792000,1736785843811,-151.0,0.00023622,2]
[348792002,1736785843821,-259.659978,0.00023622,2]
[348792004,1736785843831,-151.0,0.00023622,7]
[348792006,1736785843840,-151.0,0.00023622,7]
[348792008,1736785843850,-151.0,0.00023622,7]
[348792010,1736785843859,-151.0,0.00023622,7]
[348792012,1736785843869,-151.0,0.00023622,7]
[348792014,1736785843879,-151.0,0.00023622,7]
[348792016,1736785843888,-151.0,0.00023622,7]
[348792018,1736785843898,-151.0,0.00023622,7]
[348792020,1736785843907,-151.0,0.00023622,7]
[348792022,1736785843916,-151.0,0.00023622,7]
[348792024,1736785843927,-151.0,0.00023622,7]
[348792027,1736785843936,-151.0,0.00023622,7]
[348792029,1736785843945,-151.0,0.00023622,7]
[348792031,1736785843955,-151.0,0.00023622,7]
[348792033,1736785843965,-151.0,0.00023622,7]
[348792035,1736785843974,-151.0,0.00023622,7]
[348792037,1736785843984,-151.0,0.00023622,7]
[348792039,1736785843993,-151.0,0.00023622,7]
[348792041,1736785844005,-151.0,0.00023622,7]
[348792043,1736785844014,-294.073817,0.00023622,7]
[348792045,1736785844023,-167.89219,0.00023622,7]
[348792046,1736785844033,-152.972493,0.00023622,7]
[348792047,1736785844045,-151.0,0.00023622,7]
[348792048,1736785844059,-151.0,0.00023622,7]
[348792050,1736785844068,-151.0,0.00023622,7]
[348792052,1736785844078,-151.0,0.00023622,7]
[348792054,1736785844087,-151.0,0.00023622,7]
[348792056,1736785844098,-151.0,0.00023622,7]
[348792057,1736785844108,-151.0,0.00023622,7]
[348792058,1736785844120,-205.54055,0.00023622,7]
[348792059,1736785844132,-335.752034,0.00023622,7]
[348792060,1736785844142,-335.752034,0.00023622,7]
[348792061,1736785844152,-335.752034,0.00023622,7]
[348792062,1736785844161,-335.752034,0.00023622,7]
[348792063,1736785844170,-335.752034,0.00023622,7]
[348792064,1736785844179,-335.752034,0.00023622,7]
[348792065,1736785844189,-335.752034,0.00023622,7]
[348792066,1736785844200,-335.752034,0.00023622,7]
[348792067,1736785844210,-335.752034,0.00023622,7]
[348792068,1736785844220,-335.752034,0.00023622,7]
[348792069,1736785844229,-335.752036,0.00023622,7]
[348792070,1736785844239,-151.0,0.00023622,7]
[348792071,1736785844248,-269.411578,0.00023622,7]
[348792072,1736785844259,-269.411578,0.00023622,7]
[348792073,1736785844269,-269.411578,0.00023622,7]
[348792074,1736785844278,-269.411578,0.00023622,7]
[348792075,1736785844288,-269.411578,0.00023622,7]
[348792076,1736785844297,-269.411578,0.00023622,7]
[348792077,1736785844307,-269.411578,0.00023622,7]
[348792078,1736785844316,-269.411578,0.00023622,7]
[348792079,1736785844326,-269.411578,0.00023622,7]
[348792080,1736785844337,-269.411578,0.00023622,7]
[348792081,1736785844346,-269.411578,0.00023622,7]
[348792082,1736785844356,-269.411578,0.00023622,7]
[348792083,1736785844365,-269.411578,0.00023622,7]
[348792084,1736785844375,-269.411578,0.00023622,7]
[348792085,1736785844385,-269.411578,0.00023622,7]
[348792086,1736785844395,-269.411578,0.00023622,7]
[348792087,1736785844404,-269.411578,0.00023622,7]
[348792088,1736785844414,-269.411578,0.00023622,7]
[348792089,1736785844423,-269.411578,0.00023622,7]
[348792090,1736785844433,-269.411577,0.00023622,7]
[348792091,1736785844442,-151.0,0.00023622,7]
[348792092,1736785844451,-151.0,0.00023622,7]
[348792093,1736785844461,-151.0,0.00023622,7]
[348792094,1736785844471,-151.0,0.00023622,7]
[348792095,1736785844480,-151.0,0.00023622,7]
[348792096,1736785844490,-151.0,0.00023622,7]
[348792097,1736785844499,-151.0,0.00023622,7]
[348792098,1736785844512,-151.0,0.00023622,7]
[348792099,1736785844522,-151.0,0.00023622,7]
[348792100,1736785844531,-151.0,0.00023622,7]
[348792101,1736785844540,-151.0,0.00023622,7]
[348792102,1736785844549,-5487.78,0.00023622,3]
[348792103,1736785844559,-5487.78,0.00023622,3]
[348792104,1736785844568,-5487.78,0.00023622,3]